fUSD/lending_fUSD_20251014
["ID","MTS","AMOUNT","RATE_DAILY","PERIOD"]
[391265638,1760452232637,-513.59443087,0.00014999,2]
[391265639,1760452232646,-500.0,0.00014999,2]
[391265640,1760452232657,-500.0,0.00014999,2]
[391265641,1760452232666,-500.0,0.00014999,2]
[391265642,1760452232676,-246.80143115,0.00014999,2]
[391265643,1760452232685,-178.64249864,0.00014999,2]
[391265644,1760452232694,-500.0,0.00014999,2]
[391265645,1760452232704,-500.0,0.00014999,2]
[391265646,1760452232713,-437.64542458,0.00014999,2]
[391265647,1760452232723,-216.02898279,0.00014999,2]
[391265648,1760452232734,-283.97101721,0.00014999,2]
[391265649,1760452232745,-500.0,0.00014999,2]
[391265650,1760452232754,-500.0,0.00014999,2]
[391265651,1760452232763,-500.0,0.00014999,2]
[391265652,1760452232772,-310.24812383,0.00014999,2]
[391265653,1760452232784,-370.90569896,0.00014999,2]
[391265654,1760452232797,-129.09430104,0.00014999,2]
[391265656,1760452232807,-500.0,0.00014999,2]
[391265658,1760452232815,-500.0,0.00014999,2]
[391265660,1760452232825,-500.0,0.00014999,2]
[391265662,1760452232834,-500.0,0.00014999,2]
[391265663,1760452232843,-500.0,0.00014999,2]
[391265664,1760452232851,-457.36265444,0.00014999,2]
[391265665,1760452232860,-383.06519452,0.00014999,2]
[391265666,1760452232904,-116.93480548,0.00014999,2]
[391265667,1760452232914,-500.0,0.00014999,2]
[391265668,1760452232923,-500.0,0.00014999,2]
[391265669,1760452232932,-500.0,0.00014999,2]
[391265670,1760452232941,-500.0,0.00014999,2]
[391265671,1760452232951,-500.0,0.00014999,2]
[391265672,1760452232960,-500.0,0.00014999,2]
[391265673,1760452232969,-500.0,0.00014999,2]
[391265674,1760452232978,-422.3511486,0.00014999,2]
[391265675,1760452232988,-666.0,0.00014999,2]
[391265676,1760452232997,-1000.0,0.00015,2]
[391265677,1760452233007,-1000.0,0.00015,2]
[391265678,1760452233017,-1000.0,0.00015,2]
[391265679,1760452233028,-1000.0,0.00015,2]
[391265680,1760452233040,-1000.0,0.00015,2]
[391265681,1760452233050,-110774.71404588,0.00015,2]
[391265682,1760452233061,-1396.31373041,0.00015,2]
[391265683,1760452233072,-296.30613985,0.00015,2]
[391265684,1760452233084,-512.25234728,0.00015,2]
[391265685,1760452233095,-675.0,0.00015,2]
[391265691,1760452238122,-1121.9,0.00015,2]
[391265692,1760452238138,-1323.27193708,0.00015,2]
[391265693,1760452238151,-144302.92514825,0.00015,2]
[391265694,1760452238162,-1422.41859326,0.00015,2]
[391265695,1760452238226,-11277.88854392,0.00015,2]
[391265696,1760452238238,-13014.21391566,0.00015,2]
[391265697,1760452238255,-19443.99690734,0.00015,2]
[391265698,1760452238275,-22642.2024086,0.00015,2]
[391265699,1760452238287,-754.56966197,0.00015,2]
[391265702,1760452238350,-15630.34224373,0.00015,2]
[391265944,1760452240754,-3031.21490487,0.00015,2]
[391265946,1760452240765,-1814.01821835,0.00015,2]
[391265949,1760452240778,-3766.29712139,0.00015,2]
[391265951,1760452240796,-7067.73446767,0.00015,2]
[391265953,1760452240808,-9885.17335519,0.00015,2]
[391265955,1760452240820,-9099.71664481,0.00015,2]
[391265958,1760452240842,-2950.739588,0.00015,2]
[391265962,1760452240879,-17677.41490602,0.00015,2]
[391265967,1760452240915,-621.69523743,0.00015,2]
[391265970,1760452240935,-2671.7718,0.00015,2]
[391265973,1760452240956,-495274.19242012,0.00015,2]
[391266009,1760452241331,-6020.30659814,0.00015,2]
[391266011,1760452241346,-13533.9728,0.00015,2]
[391266014,1760452241358,-1942.9070334,0.00015,2]
[391266133,1760452242740,-17234.72715856,0.00015,2]
[391266163,1760452243149,-313.62008107,0.00015,2]
[391266164,1760452243161,-4160.66584955,0.00015,2]
[391266165,1760452243172,-336.5113305,0.00015,2]
[391266168,1760452243249,-905.0240924,0.00015,2]
[391266169,1760452243415,-261684.47617717,0.00015,2]
[391266170,1760452243427,-7795.60850713,0.00015,2]
[391266172,1760452243438,-3396.0,0.00015,2]
[391266281,1760452246071,-1150.49056801,0.00015,2]
[391266282,1760452246083,-11189.8067,0.00015,2]
[391266283,1760452246094,-352.9299571,0.00015,2]
[391266284,1760452246398,-1003.82497871,0.00015,2]
[391266366,1760452308324,500.0,0.00027397,120]
[391266368,1760452394532,500.0,0.00027397,120]
[391266369,1760452397182,2000.0,0.00027397,120]
[391266370,1760452408591,500.0,0.00027397,120]
[391266371,1760452414478,500.0,0.00027397,120]
[391266381,1760452628826,273.2052,0.00027397,120]
[391266382,1760452635142,1584.8,0.00027397,120]
[391266394,1760452996294,456.592422,0.00027397,120]
[391266395,1760453003402,500.0,0.00027397,120]
[391266396,1760453197432,322.75530205,0.00027397,120]
[391266412,1760453329780,200.0,0.00027397,120]
[391266416,1760453432207,-248.17,0.00013631,2]
[391266417,1760453432218,-555.29,0.00013723,2]
[391266418,1760453432228,-220.93741909,0.00013733,2]
[391266419,1760453432238,-182.54951389,0.0001375,2]
[391266420,1760453432248,-166.66,0.0001383,2]
[391266421,1760453432258,-2000.0,0.00013833,2]
[391266422,1760453432269,-1200.0,0.00013879,2]
[391266423,1760453432279,-300.0,0.00013879,2]
[391266424,1760453432292,-300.0,0.00013879,2]
[391266425,1760453432303,-1200.0,0.0001388,2]
[391266426,1760453432313,-1600.0,0.00014005,2]
[391266427,1760453432323,-9999.99,0.00014005,2]
[391266428,1760453432334,-150.99,0.00014005,2]
[391266429,1760453432344,-250.0,0.00014064,2]
[391266430,1760453432354,-166.66,0.00014121,2]
[391266431,1760453432363,-250.0,0.00014214,7]
[391266432,1760453432373,-166.66,0.00014412,2]
[391266433,1760453432383,-167.66,0.00014452,2]
[391266434,1760453432393,-1284.0,0.0001451,2]
[391266435,1760453432403,-150.0,0.00014538,2]
[391266436,1760453432412,-855.0,0.00014539,2]
[391266437,1760453432423,-379.0,0.00014564,2]
[391266438,1760453432432,-736.0,0.00014592,2]
[391266439,1760453432442,-398.0,0.00014621,2]
[391266440,1760453432452,-166.66,0.00014703,2]
[391266441,1760453432462,-627.92005244,0.000148,2]
[391266442,1760453432471,-203.34762041,0.00014891,2]
[391266444,1760453432481,-151.0,0.00014891,2]
[391266446,1760453432491,-281.4888577,0.00014891,2]
[391266448,1760453432500,-151.0,0.00014891,2]
[391266450,1760453432510,-151.0,0.00014891,2]
[391266452,1760453432520,-151.0,0.00014891,2]
[391266454,1760453432529,-151.0,0.00014891,2]
[391266456,1760453432539,-179.01056085,0.00014891,2]
[391266458,1760453432551,-201.65049896,0.00014891,2]
[391266460,1760453432561,-348.3935464,0.000149,2]
[391266462,1760453432570,-150.0,0.000149,2]
[391266464,1760453432581,-244.90853518,0.000149,2]
[391266466,1760453432590,-1278.0211599,0.000149,2]
[391266468,1760453432600,-8683.34269327,0.000149,2]
[391266471,1760453432610,-500.0,0.00014973,2]
[391266473,1760453432619,-500.0,0.00014973,2]
[391266475,1760453432628,-330.07541042,0.00014973,2]
[391266477,1760453432638,-500.0,0.00014973,2]
[391266479,1760453432648,-500.0,0.00014973,2]
[391266481,1760453432658,-206.9549592,0.0001499,2]
[391266483,1760453432667,-2000.0,0.00014994,2]
[391266485,1760453432677,-2000.0,0.00014994,2]
[391266487,1760453432686,-300.0,0.00014994,2]
[391266489,1760453432696,-166.66,0.00014995,2]
[391266491,1760453432706,-449.50296993,0.00014999,2]
[391266493,1760453432715,-247.78663922,0.00014999,2]
[391266495,1760453432726,-500.0,0.00014999,2]
[391266497,1760453432736,-500.0,0.00014999,2]
[391266499,1760453432745,-500.0,0.00014999,2]
[391266501,1760453432755,-500.0,0.00014999,2]
[391266503,1760453432765,-500.0,0.00014999,2]
[391266505,1760453432775,-326.126,0.00014999,2]
[391266507,1760453432784,-500.0,0.00014999,2]
[391266509,1760453432794,-301.16033743,0.00014999,2]
[391266511,1760453432808,-500.0,0.00014999,2]
[391266513,1760453432821,-500.0,0.00014999,2]
[391266515,1760453432831,-500.0,0.00014999,2]
[391266517,1760453432840,-401.5201188,0.00014999,2]
[391266519,1760453432850,-500.0,0.00014999,2]
[391266521,1760453432859,-500.0,0.00014999,2]
[391266523,1760453432869,-525.0,0.00014999,2]
[391266526,1760453432881,-500.0,0.00014999,2]
[391266527,1760453432891,-572.10680401,0.00014999,2]
[391266530,1760453432901,-4252.8263029,0.00015,2]
[391266532,1760453432914,-51718.07423039,0.00015,2]
[391266534,1760453432937,-6468.64451849,0.00015,2]
[391266535,1760453432949,-502.27052335,0.00015,2]
[391266536,1760453432960,-109609.39660533,0.00015,2]
[391266537,1760453432971,-21746.3708415,0.00015,2]
[391266538,1760453432982,-30767.56145225,0.00015,2]
[391266539,1760453433005,-701.61386136,0.00015,2]
[391266540,1760453433016,-56189.77897405,0.00015,2]
[391266541,1760453433028,-345.95150211,0.00015,2]
[391266544,1760453438227,-699.2,0.00015,2]
[391266545,1760453438239,-79057.1126433,0.00015,2]
[391266546,1760453438375,-640.93868497,0.00015,2]
[391266570,1760453440480,-995388.67134219,0.00015,2]
[391266571,1760453440489,-476180.35884621,0.00015,2]
[391266572,1760453440499,-4335.00281449,0.00015,2]
[391266573,1760453440510,-2443.16084588,0.00015,2]
[391266574,1760453440533,-1851.96,0.00015,2]
[391266579,1760453443388,-362.38086247,0.000149,2]
[391266580,1760453443398,-19522.41917883,0.00015,2]
[391266581,1760453443408,-500.0,0.00015,2]
[391266582,1760453443417,-1785.5018123,0.00015,2]
[391266583,1760453443426,-1296.785466,0.00015,2]
[391266584,1760453443435,-25961.85970162,0.00015,2]
[391266585,1760453443635,-1611.42876278,0.00015,2]
[391266586,1760453443646,-2195.3699862,0.00015,2]
[391266587,1760453443655,-21632.25398825,0.00015,2]
[391266588,1760453443666,-2886.09084755,0.00015,2]
[391266589,1760453443675,-2000.0,0.00015106,2]
[391266590,1760453443684,-2000.0,0.00015213,2]
[391266591,1760453443694,-195.0,0.00015213,2]
[391266592,1760453443703,-167.66,0.00015247,2]
[391266593,1760453443713,-1680.0,0.00015267,2]
[391266594,1760453443735,-500.0,0.00015274,2]
[391266595,1760453443747,-166.66,0.00015286,2]
[391266596,1760453443756,-253.59,0.00015411,2]
[391266597,1760453443765,-1278.02115981,0.00015425,2]
[391266598,1760453443775,-8683.34269323,0.00015425,2]
[391266599,1760453443784,-1000.0,0.00015521,2]
[391266600,1760453443794,-500.0,0.00015521,2]
[391266601,1760453443803,-255.0,0.00015657,2]
[391266602,1760453443818,-1600.0,0.00015756,2]
[391266603,1760453443827,-253.59,0.00015878,2]
[391266604,1760453443837,-1278.02115981,0.0001595,2]
[391266605,1760453443847,-8683.34269323,0.0001595,2]
[391266606,1760453443857,-151.0,0.00015985,2]
[391266607,1760453443866,-322.6107,0.00015985,2]
[391266608,1760453443875,-151.0,0.00015985,2]
[391266610,1760453443884,-9552.16786547,0.00015985,2]
[391266612,1760453443894,-695.39793187,0.00015985,2]
[391266614,1760453443903,-1000.0,0.00015985,2]
[391266616,1760453443912,-1064.10177476,0.00015985,2]
[391266618,1760453443921,-668.65185757,0.00015985,2]
[391266620,1760453443930,-500.0,0.00015985,2]
[391266621,1760453443939,-2000.0,0.00015985,2]
[391266622,1760453443948,-2000.0,0.00015985,2]
[391266623,1760453443958,-2000.0,0.00015985,2]
[391266624,1760453443967,-2000.0,0.00015985,2]
[391266625,1760453443976,-1755.54119659,0.00015985,2]
[391266626,1760453443985,-1303.94148289,0.00015985,2]
[391266627,1760453443995,-152.1408671,0.00015985,2]
[391266628,1760453444004,-1139.98121994,0.00015985,2]
[391266629,1760453444013,-151.0,0.00015985,2]
[391266630,1760453444023,-500.0,0.00015985,2]
[391266631,1760453444031,-500.0,0.00015985,2]
[391266632,1760453444041,-625.90879544,0.00015985,2]
[391266633,1760453444049,-277.35679052,0.00015985,2]
[391266634,1760453444062,-244.90853513,0.00016033,2]
[391266635,1760453444072,-9905.5980765,0.0001604,2]
[391266636,1760453444081,-167.66,0.00016042,2]
[391266637,1760453444091,-926.95851735,0.00016095,2]
[391266638,1760453444101,-348.39354638,0.00016228,2]
[391266639,1760453444111,-253.59,0.00016345,2]
[391266640,1760453444120,-3948.0,0.00016384,2]
[391266641,1760453444129,-1278.02115981,0.00016475,2]
[391266642,1760453444139,-8683.34269323,0.00016475,2]
[391266643,1760453444148,-356.19,0.00016491,2]
[391266644,1760453444158,-1785.5018123,0.00016521,2]
[391266645,1760453444167,-1296.785466,0.00016526,2]
[391266646,1760453444177,-720.0,0.00016794,2]
[391266647,1760453444186,-253.59,0.00016812,2]
[391266648,1760453444196,-167.66,0.00016838,2]
[391266649,1760453444205,-433.0,0.00016864,2]
[391266650,1760453444215,-6281.6813922,0.00016903,2]
[391266651,1760453444225,-6152.4322708,0.00016903,2]
[391266652,1760453444235,-5470.7822098,0.00016903,2]
[391266653,1760453444244,-1278.02115981,0.00017,2]
[391266654,1760453444254,-8683.34269323,0.00017,2]
[391266655,1760453444263,-244.90853513,0.00017167,2]
[391266656,1760453444272,-253.59,0.00017279,2]
[391266657,1760453444282,-1401.632575,0.00017328,2]
[391266658,1760453444291,-1372.7931979,0.00017328,2]
[391266659,1760453444300,-1220.6965106,0.00017328,2]
[391266660,1760453444315,-150.0,0.00017348,2]
[391266661,1760453444324,-334.5472959,0.00017354,2]
[391266662,1760453444334,-287.61899177,0.00017354,2]
[391266663,1760453444344,-1600.0,0.00017507,2]
[391266664,1760453444353,-1278.02115981,0.00017526,2]
[391266665,1760453444363,-8683.34269323,0.00017526,2]
[391266666,1760453444372,-348.39354638,0.00017555,2]
[391266667,1760453444382,-2021.45875981,0.00017729,2]
[391266668,1760453444392,-2021.45875982,0.00017729,2]
[391266669,1760453444402,-253.59,0.00017747,2]
[391266670,1760453444412,-1785.5018123,0.00018042,2]
[391266671,1760453444421,-1278.02115981,0.00018051,2]
[391266672,1760453444430,-8683.34269323,0.00018051,2]
[391266673,1760453444440,-1296.785466,0.00018051,2]
[391266674,1760453444450,-27007.95786228,0.00018146,2]
[391266675,1760453444460,-736.0,0.00018158,2]
[391266676,1760453444469,-244.90853513,0.000183,2]
[391266677,1760453444479,-1422.0,0.00018421,2]
[391266678,1760453444489,-1278.02115981,0.00018576,2]
[391266679,1760453444498,-8683.34269323,0.00018576,2]
[391266680,1760453444508,-346.92554585,0.00018723,2]
[391266681,1760453444518,-298.26089446,0.00018723,2]
[391266682,1760453444527,-151.73,0.000188,2]
[391266683,1760453444536,-3109.06023308,0.00018868,2]
[391266684,1760453444545,-348.39354638,0.00018883,2]
[391266685,1760453444555,-500.0,0.000189,7]
[391266686,1760453444569,-500.0,0.000189,7]
[391266687,1760453444578,-500.0,0.000189,7]
[391266688,1760453444587,-500.0,0.000189,7]
[391266689,1760453444596,-500.0,0.000189,7]
[391266690,1760453444606,-500.0,0.000189,7]
[391266691,1760453444615,-500.0,0.000189,7]
[391266692,1760453444624,-500.0,0.000189,7]
[391266693,1760453444634,-500.0,0.000189,7]
[391266694,1760453444643,-500.0,0.000189,7]
[391266695,1760453444652,-500.0,0.000189,7]
[391266696,1760453444661,-500.0,0.000189,7]
[391266697,1760453444670,-223.4,0.000189,7]
[391266698,1760453444679,-153.0,0.00018904,2]
[391266699,1760453444689,-153.0,0.00018904,2]
[391266700,1760453444698,-153.0,0.00018904,2]
[391266701,1760453444707,-153.0,0.00018904,2]
[391266702,1760453444716,-153.0,0.00018904,2]
[391266703,1760453444725,-153.0,0.00018904,2]
[391266704,1760453444734,-153.0,0.00018904,2]
[391266705,1760453444745,-153.0,0.00018904,2]
[391266706,1760453444758,-153.0,0.00018904,2]
[391266707,1760453444767,-153.0,0.00018904,2]
[391266708,1760453444776,-153.0,0.00018904,2]
[391266709,1760453444785,-153.0,0.00018904,2]
[391266710,1760453444794,-153.0,0.00018904,2]
[391266711,1760453444803,-153.0,0.00018904,2]
[391266712,1760453444817,-153.0,0.00018904,2]
[391266713,1760453444827,-153.0,0.00018904,2]
[391266714,1760453444836,-153.0,0.00018904,2]
[391266715,1760453444845,-153.0,0.00018904,2]
[391266716,1760453444854,-153.0,0.00018904,2]
[391266717,1760453444865,-153.0,0.00018904,2]
[391266718,1760453444874,-153.0,0.00018904,2]
[391266719,1760453444883,-153.0,0.00018904,2]
[391266720,1760453444893,-153.0,0.00018904,2]
[391266721,1760453444902,-153.0,0.00018904,2]
[391266722,1760453444911,-153.0,0.00018904,2]
[391266723,1760453444920,-153.0,0.00018904,2]
[391266724,1760453444929,-153.0,0.00018904,2]
[391266725,1760453444938,-153.0,0.00018904,2]
[391266726,1760453444947,-153.0,0.00018904,2]
[391266727,1760453444961,-153.0,0.00018904,2]
[391266728,1760453444971,-153.0,0.00018904,2]
[391266729,1760453444981,-153.0,0.00018904,2]
[391266730,1760453444991,-153.0,0.00018904,2]
[391266731,1760453445000,-153.0,0.00018904,2]
[391266732,1760453445009,-153.0,0.00018904,2]
[391266733,1760453445018,-153.0,0.00018904,2]
[391266734,1760453445027,-900.0,0.00018941,2]
[391266735,1760453445036,-2064.37,0.00019,2]
[391266736,1760453445046,-914.5369327,0.00019,2]
[391266737,1760453445055,-166.70326285,0.00019,2]
[391266738,1760453445070,-2305.496,0.00019,2]
[391266739,1760453445079,-150.0,0.00019,2]
[391266740,1760453445088,-900.0,0.00019034,2]
[391266741,1760453445097,-46588.0,0.00019041,2]
[391266742,1760453445107,-151.0,0.00019075,2]
[391266743,1760453445116,-156.65981001,0.00019078,2]
[391266744,1760453445125,-151.0,0.00019078,2]
[391266745,1760453445135,-151.0,0.00019078,2]
[391266746,1760453445144,-151.0,0.00019078,2]
[391266747,1760453445153,-151.0,0.00019078,2]
[391266748,1760453445162,-151.0,0.00019078,2]
[391266749,1760453445171,-202.64008,0.00019078,2]
[391266750,1760453445180,-202.64008,0.00019078,2]
[391266751,1760453445189,-151.0,0.00019078,2]
[391266752,1760453445198,-202.64008,0.00019078,2]
[391266753,1760453445207,-151.0,0.00019078,2]
[391266754,1760453445217,-202.64008,0.00019078,2]
[391266755,1760453445226,-151.0,0.00019078,2]
[391266756,1760453445235,-151.0,0.00019078,2]
[391266757,1760453445244,-151.0,0.00019078,2]
[391266758,1760453445254,-151.0,0.00019078,2]
[391266759,1760453445263,-151.0,0.00019078,2]
[391266760,1760453445273,-270.765381,0.00019078,2]
[391266761,1760453445283,-270.765381,0.00019078,2]
[391266762,1760453445292,-270.765381,0.00019078,2]
[391266763,1760453445302,-270.765381,0.00019078,2]
[391266764,1760453445315,-151.00000034,0.00019078,2]
[391266765,1760453445325,-161.007946,0.00019078,2]
[391266766,1760453445335,-161.007946,0.00019078,2]
[391266767,1760453445344,-161.007946,0.00019078,2]
[391266768,1760453445353,-161.007946,0.00019078,2]
[391266769,1760453445363,-151.0,0.00019078,2]
[391266770,1760453445372,-151.336318,0.00019078,2]
[391266771,1760453445382,-233.998844,0.00019078,2]
[391266772,1760453445391,-329.385033,0.00019078,2]
[391266773,1760453445401,-329.385033,0.00019078,2]
[391266774,1760453445411,-329.385033,0.00019078,2]
[391266775,1760453445420,-329.385033,0.00019078,2]
[391266776,1760453445430,-151.0,0.00019078,2]
[391266777,1760453445439,-151.0,0.00019078,2]
[391266778,1760453445449,-151.0,0.00019078,2]
[391266779,1760453445458,-151.0,0.00019078,2]
[391266780,1760453445468,-151.0,0.00019078,2]
[391266781,1760453445477,-151.0,0.00019078,2]
[391266782,1760453445487,-151.0,0.00019078,2]
[391266783,1760453445497,-151.0,0.00019078,2]
[391266784,1760453445506,-151.0,0.00019078,2]
[391266785,1760453445516,-151.0,0.00019078,2]
[391266786,1760453445525,-55555.0,0.00019078,2]
[391266787,1760453445534,-1082.38945546,0.00019085,2]
[391266788,1760453445544,-22967.96036697,0.00019087,2]
[391266789,1760453445563,-177254.22259723,0.00019087,2]
[391266790,1760453445575,-30490.46898035,0.00019087,2]
[391266791,1760453445584,-214987.99306581,0.00019093,2]
[391266800,1760453446936,-153.0,0.00018904,2]
[391266801,1760453446950,-153.0,0.00018904,2]
[391266802,1760453446959,-153.0,0.00018904,2]
[391266803,1760453446968,-153.0,0.00018904,2]
[391266804,1760453446978,-916.06253567,0.00019093,2]
[391266805,1760453447762,-1157.63323381,0.00019093,2]
[391266806,1760453447860,-33506.59589365,0.00019093,2]
[391266807,1760453447894,-1768.06131891,0.00019093,2]
[391266810,1760453524670,1508.56176985,0.00027397,120]
[391266811,1760453597348,2000.0,0.00027397,120]
[391266812,1760453612388,500.0,0.00027397,120]
[391266813,1760453616868,500.0,0.00027397,120]
[391266814,1760453624791,1164.00257857,0.00027,120]
[391266816,1760453642692,3422.22343603,0.00027397,120]
[391266818,1760453732637,-181.0,0.00030133,120]
[391266819,1760453732665,-995.0,0.00030133,120]
[391266820,1760453732694,-550.56669003,0.00030133,120]
[391266821,1760453732723,-155.0,0.00030133,120]
[391266822,1760453732750,-226.0,0.00030133,120]
[391266823,1760453732778,-500.0,0.00030133,120]
[391266824,1760453732805,-500.0,0.00030133,120]
[391266825,1760453732840,-500.0,0.00030133,120]
[391266826,1760453732868,-284.53526824,0.00030133,120]
[391266827,1760453732900,-488753.0499,0.00030133,30]
[391266828,1760453732929,-1166.4544255,0.00030133,60]
[391266829,1760453732956,-1000.0,0.00030133,30]
[391266830,1760453732983,-1058.53033213,0.00030133,70]
[391266831,1760453733009,-1000.0,0.00030133,30]
[391266832,1760453733035,-1000.0,0.00030133,30]
[391266833,1760453733066,-1000.0,0.00030133,30]
[391266834,1760453733091,-1000.0,0.00030133,30]
[391266835,1760453733117,-1000.0,0.00030133,30]
[391266836,1760453733143,-1000.0,0.00030133,30]
[391266837,1760453733169,-663.00561663,0.00030133,120]
[391266838,1760453733552,-200.78960091,0.00030133,120]
[391266839,1760453733583,-1000.0,0.00030133,30]
[391266840,1760453733610,-1000.0,0.00030133,30]
[391266841,1760453733636,-1000.0,0.00030133,30]
[391266842,1760453733663,-1000.0,0.00030133,30]
[391266843,1760453733690,-1000.0,0.00030133,30]
[391266844,1760453733717,-1000.0,0.00030133,30]
[391266845,1760453733744,-1000.0,0.00030133,30]
[391266846,1760453733770,-1000.0,0.00030133,30]
[391266847,1760453733796,-437.20465037,0.00030133,30]
[391266848,1760453733822,-1000.0,0.00030133,30]
[391266849,1760453733849,-1000.0,0.00030133,30]
[391266850,1760453733886,-935.89293851,0.00030133,30]
[391266851,1760453733923,-798.79777148,0.00030133,30]
[391266852,1760453733951,-440.93121685,0.00030133,120]
[391266853,1760453733980,-1000.0,0.00030133,70]
[391266854,1760453734009,-50000.0,0.00030133,30]
[391266855,1760453734036,-50000.0,0.00030133,31]
[391266856,1760453734067,-50000.0,0.00030133,32]
[391266857,1760453734095,-50000.0,0.00030133,33]
[391266858,1760453734123,-50000.0,0.00030133,34]
[391266859,1760453734149,-526152.0,0.00030133,30]
[391266860,1760453734175,-2685.82552009,0.00030133,60]
[391266861,1760453734202,-6619.0,0.00030133,120]
[391266862,1760453734227,-1495.28,0.00030133,120]
[391266863,1760453734253,-333.751831,0.00030133,60]
[391266864,1760453734279,-9894.0,0.00030133,30]
[391266865,1760453734305,-999.999998,0.00030133,120]
[391266866,1760453734333,-532.39200095,0.00030133,30]
[391266867,1760453734358,-419.84206909,0.00030133,60]
[391266868,1760453734383,-397.89667768,0.00030133,30]
[391266869,1760453734408,-673.36472741,0.00030133,30]
[391266870,1760453734435,-548.2816967,0.00030133,91]
[391266871,1760453734461,-610.96219293,0.00030133,120]
[391266872,1760453734486,-2243.93968416,0.00030133,30]
[391266873,1760453734511,-912.91553012,0.00030133,30]
[391266874,1760453734538,-1000.0,0.00030133,30]
[391266875,1760453734565,-538.86484044,0.00030133,120]
[391266876,1760453734592,-711.56842347,0.00030133,30]
[391266877,1760453734618,-824.24512343,0.00030133,120]
[391266878,1760453734644,-2090.36042426,0.00030133,30]
[391266879,1760453734670,-770.20750811,0.00030133,30]
[391266880,1760453734696,-185.35985292,0.00030133,120]
[391266881,1760453734721,-2128.34881821,0.00030133,30]
[391266882,1760453734747,-2300.13400042,0.00030133,30]
[391266883,1760453734772,-158.72858674,0.00030133,120]
[391266884,1760453734799,-2388.90646048,0.00030133,120]
[391266885,1760453734826,-1368.77269063,0.00030133,120]
[391266886,1760453734852,-1065.38144626,0.00030133,30]
[391266887,1760453734879,-1484.57858554,0.00030133,30]
[391266888,1760453734909,-660.95772768,0.00030133,30]
[391266889,1760453734937,-894.0193186,0.00030133,30]
[391266890,1760453734965,-1558.05578281,0.00030133,120]
[391266891,1760453734992,-902.75686316,0.00030133,30]
[391266892,1760453735018,-459.95318673,0.00030133,120]
[391266893,1760453735044,-1329.27615657,0.00030133,30]
[391266894,1760453735074,-231.08775673,0.00030133,120]
[391266895,1760453735100,-450.7823501,0.00030133,120]
[391266896,1760453735125,-972.3959526,0.00030133,30]
[391266897,1760453735151,-383.5450889,0.00030133,60]
[391266898,1760453735178,-195.95254504,0.00030133,120]
[391266899,1760453735204,-1326.79915084,0.00030133,120]
[391266900,1760453735231,-457.65426056,0.00030133,120]
[391266901,1760453735258,-1378.36401417,0.00030133,30]
[391266902,1760453735284,-217.59730031,0.00030133,30]
[391266903,1760453735315,-1004.67543415,0.00030133,30]
[391266904,1760453735342,-610.13330597,0.00030133,120]
[391266905,1760453735370,-2029.96397857,0.00030133,120]
[391266906,1760453735397,-2000.0,0.00030133,30]
[391266907,1760453735426,-547.20019048,0.00030133,120]
[391266908,1760453735453,-367.09146871,0.00030133,30]
[391266909,1760453735480,-350.33545864,0.00030133,60]
[391266910,1760453735508,-495.9602898,0.00030133,30]
[391266911,1760453735536,-689.23573234,0.00030133,30]
[391266912,1760453735564,-1961.72402349,0.00030133,30]
[391266913,1760453735592,-1057.54140274,0.00030133,30]
[391266914,1760453735619,-285.52887469,0.00030133,120]
[391266915,1760453735646,-339.28180885,0.00030133,120]
[391266916,1760453735674,-373.59419746,0.00030133,120]
[391266917,1760453735702,-281.69157504,0.00030133,120]
[391266918,1760453735729,-1595.65737666,0.00030133,120]